[Event "3rd FIDE WCCC Blitz G12 2019"]
[Site "Minsk"]
[Date "2019.08.18"]
[Round "2.2"]
[White "Babic, Milana"]
[Black "Dalatsenka, Volha"]
[Result "1-0"]
[ECO "E65"]
[WhiteElo "1689"]
[BlackElo "1380"]
[Annotator "NA"]
[PlyCount "83"]
[EventDate "2019.08.18"]
[EventType "swiss"]
[EventCountry "BLR"]
[SourceTitle "playchess.com"]
[Source "ChessBase"]
[SourceQuality "1"]
[TimeControl "300+2"]

1. Nf3 {[%emt 0:00:00]} g6 {[%emt 0:00:00]} 2. g3 {[%emt 0:00:00]} Bg7 {[%emt 0:00:00]} 3. Bg2 {[%emt 0:00:00]} Nf6 {[%emt 0:00:00]} 4. O-O {[%emt 0:00:01]} d6 {[%emt 0:00:01]} 5. d4 {[%emt 0:00:02]} O-O {[%emt 0:00:01]} 6. c4 {[%emt 0:00:00]} c5 {[%emt 0:00:05]} 7. Nc3 {[%emt 0:00:03]} Nc6 {[%emt 0:00:03]} 8. e3 {[%emt 0:00:06]} cxd4 {[%emt 0:00:11]} 9. exd4 {[%emt 0:00:00]} a6 {[%emt 0:00:09]} 10. b3 {[%emt 0:00:05]} e5 {[%emt 0:00:18]} 11. dxe5 {[%emt 0:00:06]} Nxe5 {[%emt 0:00:01]} 12. Bb2 {[%emt 0:00:07]} Nxf3+ {[%emt 0:00:04]} 13. Bxf3 {[%emt 0:00:01]} Bh3 {[%emt 0:00:01]} 14. Re1 {[%emt 0:00:06]} Qc7 {[%emt 0:00:12]} 15. Qd2 {[%emt 0:00:13]} Rfe8 {[%emt 0:00:06]} 16. Bg2 {[%emt 0:00:06]} Bxg2 17. Kxg2 {[%emt 0:00:01]} Qc6+ {[%emt 0:00:07]} 18. Kg1 {[%emt 0:00:02]} Rad8 {[%emt 0:00:19]} 19. Rad1 {[%emt 0:00:01]} Rxe1+ {[%emt 0:00:01]} 20. Rxe1 {[%emt 0:00:01]} Re8 {[%emt 0:00:06]} 21. Rd1 {[%emt 0:00:02]} Rd8 {[%emt 0:00:01]} 22. Ba3 {[%emt 0:00:04]} Ne8 {[%emt 0:00:09]} 23. Nd5 {[%emt 0:00:21]} Kh8 {[%emt 0:00:22]} 24. Qf4 {[%emt 0:00:26]} Qd7 {[%emt 0:00:09]} 25. Nb6 {[%emt 0:00:06]} Qc7 {[%emt 0:00:09]} 26. Nd5 {[%emt 0:00:08]} Qd7 {[%emt 0:00:00]} 27. Ne3 {[%emt 0:00:22]} Be5 {[%emt 0:00:05]} 28. Qe4 {[%emt 0:00:05]} Bg7 {[%emt 0:00:21]} 29. c5 {[%emt 0:00:06]} Be5 {[%emt 0:00:10]} 30. Nc4 {[%emt 0:00:06]} Qc7 {[%emt 0:00:07]} 31. cxd6 {[%emt 0:00:16]} Bxd6 {[%emt 0:00:12]} 32. Nxd6 {[%emt 0:00:01]} Nxd6 {[%emt 0:00:01]} 33. Bxd6 {[%emt 0:00:00]} Rxd6 {[%emt 0:00:02]} 34. Qe5+ {[%emt 0:00:00]} Kg8 {[%emt 0:00:24]} 35. Qxd6 {[%emt 0:00:00]} Qc2 {[%emt 0:00:02]} 36. Qd2 {[%emt 0:00:00]} Qc6 {[%emt 0:00:03]} 37. a4 {[%emt 0:00:00]} Qb6 {[%emt 0:00:03]} 38. Qd8+ {[%emt 0:00:00]} Qxd8 {[%emt 0:00:01]} 39. Rxd8+ {[%emt 0:00:00]} Kg7 {[%emt 0:00:01]} 40. Rb8 {[%emt 0:00:00]} b5 {[%emt 0:00:02]} 41. axb5 {[%emt 0:00:00]} axb5 {[%emt 0:00:00]} 42. Rxb5 1-0

[Event "3rd FIDE WCCC Blitz G12 2019"]
[Site "Minsk"]
[Date "2019.08.18"]
[Round "2.3"]
[White "Jansone, Melanija Luize"]
[Black "Petrova, Elizaveta"]
[Result "0-1"]
[ECO "B41"]
[WhiteElo "1193"]
[BlackElo "1573"]
[Annotator "NA"]
[PlyCount "130"]
[EventDate "2019.08.18"]
[EventType "swiss"]
[EventCountry "BLR"]
[SourceTitle "playchess.com"]
[Source "ChessBase"]
[SourceQuality "1"]
[TimeControl "300+2"]

1. e4 {[%emt 0:00:00]} c5 {[%emt 0:00:00]} 2. Nf3 {[%emt 0:00:00]} e6 {[%emt 0:00:01]} 3. d4 {[%emt 0:00:00]} cxd4 {[%emt 0:00:01]} 4. Nxd4 {[%emt 0:00:01]} a6 {[%emt 0:00:00]} 5. Be3 {[%emt 0:00:06]} Qc7 {[%emt 0:00:01]} 6. c3 {[%emt 0:00:08]} Nf6 {[%emt 0:00:03]} 7. Nd2 {[%emt 0:00:02]} Nc6 {[%emt 0:00:01]} 8. Be2 {[%emt 0:00:05]} Be7 {[%emt 0:00:03]} 9. Rc1 {[%emt 0:00:22]} O-O {[%emt 0:00:06]} 10. O-O {[%emt 0:00:02]} d6 {[%emt 0:00:08]} 11. f3 {[%emt 0:00:20]} e5 {[%emt 0:00:11]} 12. Nf5 {[%emt 0:00:10]} Be6 {[%emt 0:00:41]} 13. Nxe7+ {[%emt 0:00:07]} Qxe7 {[%emt 0:00:04]} 14. a3 {[%emt 0:00:03]} h6 {[%emt 0:00:04]} 15. Bc4 {[%emt 0:00:24]} b5 {[%emt 0:00:08]} 16. Bxe6 {[%emt 0:00:09]} Qxe6 {[%emt 0:00:01]} 17. Qe2 {[%emt 0:00:18]} Rfd8 {[%emt 0:00:10]} 18. Rfd1 {[%emt 0:00:10]} d5 {[%emt 0:00:23]} 19. exd5 {[%emt 0:00:04]} Nxd5 {[%emt 0:00:02]} 20. Ne4 {[%emt 0:00:33]} Nxe3 {[%emt 0:00:58]} 21. Qxe3 {[%emt 0:00:05]} Na5 {[%emt 0:00:25]} 22. Ng3 {[%emt 0:00:46]} Nc4 {[%emt 0:00:30]} 23. Qe2 {[%emt 0:00:16]} f6 {[%emt 0:00:26]} 24. h3 {[%emt 0:00:25]} Qb6+ {[%emt 0:00:04]} 25. Kh1 {[%emt 0:00:19]} Qe3 {[%emt 0:00:13]} 26. Qxe3 {[%emt 0:00:11]} Nxe3 {[%emt 0:00:01]} 27. Re1 {[%emt 0:00:00]} Nc4 {[%emt 0:00:01]} 28. Re2 {[%emt 0:00:16]} Rd3 {[%emt 0:00:21]} 29. Ne4 {[%emt 0:00:12]} Nd6 {[%emt 0:00:19]} 30. Nf2 {[%emt 0:00:05]} Rd5 {[%emt 0:00:01]} 31. b3 {[%emt 0:00:07]} Rd8 {[%emt 0:00:03]} 32. c4 {[%emt 0:00:03]} Rc5 {[%emt 0:00:09]} 33. Nd3 {[%emt 0:00:06]} Rcc8 {[%emt 0:00:04]} 34. Nb2 {[%emt 0:00:03]} Nf5 {[%emt 0:00:02]} 35. Ree1 {[%emt 0:00:02]} Rd2 {[%emt 0:00:04]} 36. Nd1 {[%emt 0:00:05]} bxc4 {[%emt 0:00:07]} 37. bxc4 {[%emt 0:00:01]} Rd4 {[%emt 0:00:04]} 38. Nf2 {[%emt 0:00:02]} Rdxc4 {[%emt 0:00:02]} 39. Rcd1 {[%emt 0:00:02]} Rd4 {[%emt 0:00:02]} 40. Rxd4 {[%emt 0:00:02]} Nxd4 {[%emt 0:00:01]} 41. Ne4 {[%emt 0:00:01]} Rc2 {[%emt 0:00:03]} 42. Rb1 {[%emt 0:00:03]} Ra2 {[%emt 0:00:05]} 43. Rb8+ {[%emt 0:00:02]} Kh7 {[%emt 0:00:01]} 44. Ra8 {[%emt 0:00:04]} Rxa3 {[%emt 0:00:01]} 45. Nc5 {[%emt 0:00:02]} Ra1+ {[%emt 0:00:01]} 46. Kh2 {[%emt 0:00:01]} a5 {[%emt 0:00:02]} 47. Nb7 {[%emt 0:00:02]} a4 {[%emt 0:00:01]} 48. Nc5 {[%emt 0:00:02]} a3 {[%emt 0:00:01]} 49. Nd3 {[%emt 0:00:02]} Ra2 {[%emt 0:00:02]} 50. Nb4 {[%emt 0:00:02]} Rb2 {[%emt 0:00:04]} 51. Nd3 {[%emt 0:00:01]} Ra2 {[%emt 0:00:02]} 52. Nb4 {[%emt 0:00:01]} Ra1 {[%emt 0:00:01]} 53. Nd3 {[%emt 0:00:02]} Nb3 {[%emt 0:00:06]} 54. Nb4 Nd2 {[%emt 0:00:02]} 55. Nc2 {[%emt 0:00:07]} Nf1+ {[%emt 0:00:05]} 56. Kg1 {[%emt 0:00:04]} Rc1 {[%emt 0:00:02]} 57. Nxa3 {[%emt 0:00:02]} Ne3+ {[%emt 0:00:03]} 58. Kf2 {[%emt 0:00:01]} Nd5 {[%emt 0:00:02]} 59. Nb5 {[%emt 0:00:02]} Rc2+ {[%emt 0:00:01]} 60. Kg3 {[%emt 0:00:01]} Nf4 {[%emt 0:00:02]} 61. Nd6 {[%emt 0:00:02]} Rxg2+ {[%emt 0:00:01]} 62. Kh4 {[%emt 0:00:02]} Rh2 {[%emt 0:00:02]} 63. Kg3 {[%emt 0:00:01]} Rxh3+ {[%emt 0:00:01]} 64. Kf2 {[%emt 0:00:00]} Rh2+ {[%emt 0:00:01]} 65. Ke3 {[%emt 0:00:01]} Re2# {[%emt 0:00:00]} 0-1

[Event "3rd FIDE WCCC Blitz G12 2019"]
[Site "Minsk"]
[Date "2019.08.18"]
[Round "2.4"]
[White "Shubenkova, Veronika"]
[Black "Ton, Nu Quynh Duong"]
[Result "1-0"]
[ECO "E00"]
[WhiteElo "1740"]
[BlackElo "1304"]
[Annotator "NA"]
[PlyCount "115"]
[EventDate "2019.08.18"]
[EventType "swiss"]
[EventCountry "BLR"]
[SourceTitle "playchess.com"]
[Source "ChessBase"]
[SourceQuality "1"]
[TimeControl "300+2"]

1. d4 {[%emt 0:00:00]} Nf6 {[%emt 0:00:00]} 2. c4 {[%emt 0:00:01]} e6 {[%emt 0:00:00]} 3. a3 {[%emt 0:00:00]} Be7 {[%emt 0:00:06]} 4. Nc3 {[%emt 0:00:02]} O-O {[%emt 0:00:02]} 5. e4 {[%emt 0:00:07]} d5 {[%emt 0:00:05]} 6. e5 {[%emt 0:00:05]} Nfd7 {[%emt 0:00:04]} 7. cxd5 {[%emt 0:00:03]} exd5 {[%emt 0:00:03]} 8. Nxd5 {[%emt 0:00:02]} c5 {[%emt 0:00:10]} 9. Nxe7+ {[%emt 0:00:40]} Qxe7 {[%emt 0:00:02]} 10. Nf3 {[%emt 0:00:13]} cxd4 {[%emt 0:00:01]} 11. Qxd4 {[%emt 0:00:04]} Nc6 {[%emt 0:00:01]} 12. Qd6 {[%emt 0:00:07]} Qxd6 {[%emt 0:00:13]} 13. exd6 {[%emt 0:00:01]} Re8+ {[%emt 0:00:01]} 14. Kd1 {[%emt 0:00:12]} Nc5 {[%emt 0:00:05]} 15. Bf4 {[%emt 0:00:05]} Bf5 {[%emt 0:00:04]} 16. b4 {[%emt 0:00:24]} Na4 {[%emt 0:00:08]} 17. Rc1 {[%emt 0:00:17]} a6 {[%emt 0:00:59]} 18. Kd2 {[%emt 0:00:08]} Nb6 {[%emt 0:00:08]} 19. Bd3 {[%emt 0:00:07]} Bxd3 {[%emt 0:00:08]} 20. Kxd3 {[%emt 0:00:01]} Nd5 {[%emt 0:00:01]} 21. Bg3 {[%emt 0:00:01]} f5 {[%emt 0:00:22]} 22. Rhe1 {[%emt 0:00:07]} Rxe1 {[%emt 0:00:19]} 23. Rxe1 {[%emt 0:00:02]} f4 {[%emt 0:00:02]} 24. Bh4 {[%emt 0:00:01]} h6 {[%emt 0:00:01]} 25. Be7 {[%emt 0:00:33]} Ndxe7 {[%emt 0:00:08]} 26. dxe7 {[%emt 0:00:01]} Re8 {[%emt 0:00:01]} 27. Ke4 {[%emt 0:00:15]} g5 {[%emt 0:00:09]} 28. Kf5 {[%emt 0:00:05]} Nxe7+ {[%emt 0:00:07]} 29. Kf6 {[%emt 0:00:02]} Nd5+ {[%emt 0:00:01]} 30. Kg6 {[%emt 0:00:01]} Rc8 {[%emt 0:00:20]} 31. Kxh6 {[%emt 0:00:16]} g4 {[%emt 0:00:01]} 32. Ne5 {[%emt 0:00:03]} g3 {[%emt 0:00:31]} 33. hxg3 {[%emt 0:00:06]} fxg3 {[%emt 0:00:01]} 34. fxg3 {[%emt 0:00:02]} Rc3 {[%emt 0:00:01]} 35. Rd1 {[%emt 0:00:14]} Rxg3 {[%emt 0:00:10]} 36. Rxd5 {[%emt 0:00:03]} Kf8 {[%emt 0:00:01]} 37. Nd7+ {[%emt 0:00:09]} Ke7 {[%emt 0:00:03]} 38. Nc5 {[%emt 0:00:02]} Rxa3 {[%emt 0:00:04]} 39. Nxb7 {[%emt 0:00:03]} Rg3 {[%emt 0:00:01]} 40. Rd2 {[%emt 0:00:02]} Rg4 {[%emt 0:00:04]} 41. Na5 {[%emt 0:00:08]} Kf6 {[%emt 0:00:07]} 42. Rf2+ {[%emt 0:00:12]} Ke6 {[%emt 0:00:07]} 43. Nc6 {[%emt 0:00:07]} Rc4 {[%emt 0:00:04]} 44. Re2+ {[%emt 0:00:14]} Kf6 {[%emt 0:00:07]} 45. Rf2+ {[%emt 0:00:04]} Ke6 {[%emt 0:00:01]} 46. Nd8+ {[%emt 0:00:04]} Ke7 {[%emt 0:00:03]} 47. Nf7 {[%emt 0:00:10]} Rxb4 {[%emt 0:00:02]} 48. Ne5 {[%emt 0:00:02]} Rb6+ {[%emt 0:00:01]} 49. Kg7 {[%emt 0:00:06]} Rb5 {[%emt 0:00:07]} 50. Re2 {[%emt 0:00:02]} Kd6 {[%emt 0:00:13]} 51. g4 {[%emt 0:00:05]} Rxe5 {[%emt 0:00:17]} 52. Rxe5 {[%emt 0:00:02]} Kxe5 {[%emt 0:00:01]} 53. g5 {[%emt 0:00:01]} Kf5 {[%emt 0:00:01]} 54. g6 {[%emt 0:00:01]} a5 {[%emt 0:00:03]} 55. Kf7 {[%emt 0:00:00]} a4 {[%emt 0:00:00]} 56. g7 {[%emt 0:00:01]} a3 {[%emt 0:00:01]} 57. g8=Q {[%emt 0:00:01]} a2 {[%emt 0:00:01]} 58. Qa8 {[%emt 0:00:01]} 1-0

[Event "3rd FIDE WCCC Blitz G12 2019"]
[Site "Minsk"]
[Date "2019.08.18"]
[Round "2.5"]
[White "Vu, My Linh"]
[Black "Szczotka, Klara"]
[Result "1-0"]
[ECO "E20"]
[WhiteElo "1467"]
[BlackElo "1732"]
[Annotator "NA"]
[PlyCount "127"]
[EventDate "2019.08.18"]
[EventType "swiss"]
[EventCountry "BLR"]
[SourceTitle "playchess.com"]
[Source "ChessBase"]
[SourceQuality "1"]
[TimeControl "300+2"]

1. d4 {[%emt 0:00:00]} Nf6 {[%emt 0:00:00]} 2. c4 {[%emt 0:00:00]} e6 {[%emt 0:00:00]} 3. Nc3 {[%emt 0:00:01]} Bb4 {[%emt 0:00:01]} 4. Bd2 {[%emt 0:00:06]} O-O {[%emt 0:00:03]} 5. Nf3 {[%emt 0:00:01]} d5 {[%emt 0:00:09]} 6. cxd5 {[%emt 0:00:05]} exd5 {[%emt 0:00:01]} 7. a3 {[%emt 0:00:02]} Bd6 {[%emt 0:00:11]} 8. g3 {[%emt 0:00:03]} a6 {[%emt 0:00:05]} 9. Bg2 {[%emt 0:00:05]} Be6 {[%emt 0:00:19]} 10. O-O {[%emt 0:00:04]} h6 {[%emt 0:00:01]} 11. Rc1 {[%emt 0:00:07]} Nc6 {[%emt 0:00:03]} 12. Na2 {[%emt 0:00:30]} Ne4 {[%emt 0:00:23]} 13. e3 {[%emt 0:00:23]} Qe7 {[%emt 0:00:43]} 14. Bc3 {[%emt 0:00:24]} Rfd8 {[%emt 0:01:18]} 15. Qb3 {[%emt 0:00:31]} Rab8 {[%emt 0:00:25]} 16. Nd2 {[%emt 0:00:23]} Nf6 {[%emt 0:00:51]} 17. Qc2 {[%emt 0:00:06]} Qd7 {[%emt 0:00:17]} 18. Nb4 {[%emt 0:00:31]} Nxb4 {[%emt 0:00:08]} 19. Bxb4 {[%emt 0:00:02]} Bxb4 {[%emt 0:00:01]} 20. axb4 {[%emt 0:00:02]} Rdc8 {[%emt 0:00:08]} 21. Rfd1 {[%emt 0:00:16]} Qb5 {[%emt 0:00:07]} 22. Qc5 {[%emt 0:00:06]} Qxc5 {[%emt 0:00:15]} 23. bxc5 {[%emt 0:00:02]} b6 {[%emt 0:00:01]} 24. b4 {[%emt 0:00:09]} bxc5 {[%emt 0:00:07]} 25. bxc5 {[%emt 0:00:03]} Rb5 {[%emt 0:00:04]} 26. Bf1 {[%emt 0:00:06]} Ra5 {[%emt 0:00:02]} 27. Ra1 {[%emt 0:00:02]} Rxa1 {[%emt 0:00:05]} 28. Rxa1 {[%emt 0:00:01]} Ra8 {[%emt 0:00:03]} 29. Rxa6 {[%emt 0:00:03]} Rxa6 {[%emt 0:00:01]} 30. Bxa6 {[%emt 0:00:01]} Nd7 {[%emt 0:00:02]} 31. f3 {[%emt 0:00:10]} Nb8 {[%emt 0:00:01]} 32. Bb5 {[%emt 0:00:02]} Bd7 {[%emt 0:00:02]} 33. Bxd7 {[%emt 0:00:04]} Nxd7 {[%emt 0:00:01]} 34. e4 {[%emt 0:00:02]} Nf6 {[%emt 0:00:02]} 35. Kf2 {[%emt 0:00:04]} Kf8 {[%emt 0:00:01]} 36. h3 {[%emt 0:00:01]} Ke7 {[%emt 0:00:01]} 37. Ke3 {[%emt 0:00:07]} Ke6 {[%emt 0:00:02]} 38. Nb3 {[%emt 0:00:08]} Kd7 {[%emt 0:00:06]} 39. Na5 {[%emt 0:00:02]} Ke6 {[%emt 0:00:03]} 40. Nc6 {[%emt 0:00:22]} Kd7 {[%emt 0:00:04]} 41. Na7 {[%emt 0:00:01]} Ke6 {[%emt 0:00:01]} 42. Nb5 {[%emt 0:00:02]} Kd7 {[%emt 0:00:01]} 43. Na7 {[%emt 0:00:08]} Ke6 {[%emt 0:00:01]} 44. g4 {[%emt 0:00:16]} Kd7 {[%emt 0:00:02]} 45. Kf4 {[%emt 0:00:10]} Ke6 {[%emt 0:00:01]} 46. h4 {[%emt 0:00:04]} Kd7 {[%emt 0:00:03]} 47. g5 {[%emt 0:00:07]} hxg5+ {[%emt 0:00:01]} 48. hxg5 {[%emt 0:00:01]} Nh5+ {[%emt 0:00:03]} 49. Kg4 {[%emt 0:00:02]} g6 {[%emt 0:00:00]} 50. exd5 {[%emt 0:00:01]} Ng7 {[%emt 0:00:01]} 51. Kf4 {[%emt 0:00:12]} Nh5+ {[%emt 0:00:02]} 52. Ke5 {[%emt 0:00:02]} Ng3 {[%emt 0:00:01]} 53. Nb5 {[%emt 0:00:04]} Nf5 {[%emt 0:00:03]} 54. c6+ {[%emt 0:00:03]} Ke7 {[%emt 0:00:02]} 55. Nxc7 {[%emt 0:00:03]} Kd8 {[%emt 0:00:04]} 56. d6 {[%emt 0:00:03]} Ng7 {[%emt 0:00:02]} 57. Nb5 {[%emt 0:00:03]} Ne6 {[%emt 0:00:02]} 58. c7+ {[%emt 0:00:02]} Kc8 {[%emt 0:00:03]} 59. Na7+ {[%emt 0:00:05]} Kb7 {[%emt 0:00:02]} 60. c8=Q+ {[%emt 0:00:02]} Kxa7 {[%emt 0:00:01]} 61. Qxe6 {[%emt 0:00:06]} fxe6 {[%emt 0:00:01]} 62. Kxe6 Kb6 63. d7 {[%emt 0:00:03]} Kc7 {[%emt 0:00:01]} 64. Ke7 {[%emt 0:00:01]} 1-0

[Event "3rd FIDE WCCC Blitz G12 2019"]
[Site "Minsk"]
[Date "2019.08.18"]
[Round "2.6"]
[White "Darmaeva, Nomina"]
[Black "Zhapova, Yana"]
[Result "0-1"]
[ECO "B15"]
[WhiteElo "1389"]
[BlackElo "1809"]
[Annotator "NA"]
[PlyCount "71"]
[EventDate "2019.08.18"]
[EventType "swiss"]
[EventCountry "BLR"]
[SourceTitle "playchess.com"]
[Source "ChessBase"]
[SourceQuality "1"]
[TimeControl "300+2"]

1. e4 {[%emt 0:00:00]} c6 {[%emt 0:00:00]} 2. d4 {[%emt 0:00:01]} d5 {[%emt 0:00:00]} 3. Nc3 {[%emt 0:00:01]} dxe4 4. Nxe4 {[%emt 0:00:01]} Nf6 {[%emt 0:00:01]} 5. Ng3 {[%emt 0:00:04]} c5 {[%emt 0:00:08]} 6. dxc5 {[%emt 0:00:32]} Qxd1+ 7. Kxd1 {[%emt 0:00:01]} Nc6 {[%emt 0:00:25]} 8. Bb5 {[%emt 0:00:16]} Bg4+ {[%emt 0:00:01]} 9. f3 {[%emt 0:00:06]} O-O-O+ {[%emt 0:00:02]} 10. Ke1 {[%emt 0:00:07]} Bd7 {[%emt 0:00:36]} 11. N1e2 {[%emt 0:00:19]} Nb4 {[%emt 0:00:26]} 12. Bd3 {[%emt 0:00:23]} e6 {[%emt 0:00:15]} 13. Be3 {[%emt 0:00:10]} Nfd5 {[%emt 0:00:21]} 14. Bd4 {[%emt 0:00:56]} Nxd3+ {[%emt 0:00:10]} 15. cxd3 {[%emt 0:00:01]} Nb4 16. Rd1 {[%emt 0:00:48]} Bb5 {[%emt 0:00:09]} 17. Rd2 {[%emt 0:00:32]} Nxd3+ {[%emt 0:00:49]} 18. Kf1 {[%emt 0:00:31]} e5 {[%emt 0:00:09]} 19. Be3 {[%emt 0:00:25]} Kb8 {[%emt 0:01:12]} 20. a3 {[%emt 0:00:13]} Bxc5 {[%emt 0:00:40]} 21. Bxc5 {[%emt 0:00:06]} Nxc5 {[%emt 0:00:01]} 22. Rxd8+ {[%emt 0:00:01]} Rxd8 {[%emt 0:00:00]} 23. Kf2 {[%emt 0:00:01]} Nd3+ {[%emt 0:00:01]} 24. Ke3 {[%emt 0:00:04]} Nxb2 {[%emt 0:00:04]} 25. Nf5 {[%emt 0:00:08]} Nc4+ {[%emt 0:00:03]} 26. Kf2 {[%emt 0:00:01]} g6 {[%emt 0:00:02]} 27. Nfg3 {[%emt 0:00:01]} Nxa3 {[%emt 0:00:03]} 28. Ra1 {[%emt 0:00:02]} Nc2 {[%emt 0:00:06]} 29. Rc1 {[%emt 0:00:02]} Nd4 {[%emt 0:00:02]} 30. Nc3 {[%emt 0:00:02]} Ba6 {[%emt 0:00:02]} 31. Rb1 {[%emt 0:00:04]} b6 {[%emt 0:00:02]} 32. Rb2 {[%emt 0:00:01]} Bb7 {[%emt 0:00:00]} 33. Nge4 {[%emt 0:00:02]} f5 {[%emt 0:00:02]} 34. Nd2 {[%emt 0:00:02]} Rc8 {[%emt 0:00:04]} 35. Na2 Rc2 {[%emt 0:00:02]} 36. Rxc2 0-1

[Event "3rd FIDE WCCC Blitz G12 2019"]
[Site "Minsk"]
[Date "2019.08.18"]
[Round "3.1"]
[White "Komissarova, Soigina"]
[Black "Babic, Milana"]
[Result "*"]
[ECO "A15"]
[WhiteElo "1663"]
[BlackElo "1689"]
[Annotator "NA"]
[PlyCount "34"]
[EventDate "2019.08.18"]
[EventType "swiss"]
[EventCountry "BLR"]
[SourceTitle "playchess.com"]
[Source "ChessBase"]
[SourceQuality "1"]
[TimeControl "300+2"]

1. c4 {[%emt 0:00:00]} Nf6 {[%emt 0:00:00]} 2. g3 {[%emt 0:00:00]} d6 {[%emt 0:00:00]} 3. Bg2 {[%emt 0:00:01]} Nbd7 {[%emt 0:00:00]} 4. Nc3 {[%emt 0:00:02]} e5 {[%emt 0:00:00]} 5. e4 {[%emt 0:00:01]} c6 {[%emt 0:00:01]} 6. d3 {[%emt 0:00:01]} Be7 {[%emt 0:00:01]} 7. Nge2 {[%emt 0:00:01]} O-O {[%emt 0:00:01]} 8. O-O Qc7 {[%emt 0:00:01]} 9. h3 {[%emt 0:00:04]} a6 {[%emt 0:00:02]} 10. a4 {[%emt 0:00:01]} a5 {[%emt 0:00:01]} 11. Kh2 {[%emt 0:00:02]} Nc5 {[%emt 0:00:37]} 12. Be3 {[%emt 0:00:01]} Na6 {[%emt 0:00:36]} 13. f4 {[%emt 0:00:05]} Nb4 {[%emt 0:00:13]} 14. d4 {[%emt 0:00:12]} exd4 {[%emt 0:00:06]} 15. Nxd4 {[%emt 0:00:05]} Be6 {[%emt 0:00:10]} 16. b3 {[%emt 0:00:08]} Rfe8 {[%emt 0:00:22]} 17. Rc1 {[%emt 0:00:17]} Rad8 {[%emt 0:00:04]} *

[Event "3rd FIDE WCCC Blitz G12 2019"]
[Site "Minsk"]
[Date "2019.08.18"]
[Round "3.2"]
[White "Petrova, Elizaveta"]
[Black "Vlasova, Olesia"]
[Result "*"]
[ECO "A73"]
[WhiteElo "1573"]
[BlackElo "1799"]
[Annotator "NA"]
[PlyCount "38"]
[EventDate "2019.08.18"]
[EventType "swiss"]
[EventCountry "BLR"]
[SourceTitle "playchess.com"]
[Source "ChessBase"]
[SourceQuality "1"]
[TimeControl "300+2"]

1. d4 {[%emt 0:00:01]} Nf6 {[%emt 0:00:00]} 2. c4 {[%emt 0:00:01]} c5 {[%emt 0:00:00]} 3. d5 {[%emt 0:00:01]} e6 {[%emt 0:00:00]} 4. Nc3 {[%emt 0:00:01]} exd5 {[%emt 0:00:00]} 5. cxd5 {[%emt 0:00:01]} d6 {[%emt 0:00:01]} 6. e4 {[%emt 0:00:02]} g6 {[%emt 0:00:02]} 7. Nf3 {[%emt 0:00:01]} Bg7 {[%emt 0:00:01]} 8. Be2 {[%emt 0:00:02]} O-O {[%emt 0:00:04]} 9. O-O {[%emt 0:00:02]} Bg4 {[%emt 0:00:08]} 10. h3 {[%emt 0:00:02]} Bxf3 {[%emt 0:00:02]} 11. Bxf3 {[%emt 0:00:01]} a6 {[%emt 0:00:02]} 12. a4 {[%emt 0:00:01]} Nbd7 {[%emt 0:00:05]} 13. Bf4 {[%emt 0:00:09]} Qc7 {[%emt 0:00:02]} 14. Qd3 {[%emt 0:00:06]} b6 {[%emt 0:00:11]} 15. Rfe1 {[%emt 0:00:08]} Rfe8 {[%emt 0:00:08]} 16. Rac1 {[%emt 0:00:18]} Ne5 {[%emt 0:00:07]} 17. Bxe5 {[%emt 0:00:02]} Rxe5 {[%emt 0:00:01]} 18. Na2 {[%emt 0:00:34]} Qb7 {[%emt 0:00:18]} 19. b4 {[%emt 0:00:04]} Nd7 {[%emt 0:00:19]} *

[Event "3rd FIDE WCCC Blitz G12 2019"]
[Site "Minsk"]
[Date "2019.08.18"]
[Round "3.3"]
[White "Kulkova, Dina"]
[Black "Shubenkova, Veronika"]
[Result "*"]
[ECO "A14"]
[WhiteElo "1476"]
[BlackElo "1740"]
[Annotator "NA"]
[PlyCount "34"]
[EventDate "2019.08.18"]
[EventType "swiss"]
[EventCountry "BLR"]
[SourceTitle "playchess.com"]
[Source "ChessBase"]
[SourceQuality "1"]
[TimeControl "300+2"]

1. c4 {[%emt 0:00:00]} e6 {[%emt 0:00:01]} 2. g3 {[%emt 0:00:00]} Nf6 {[%emt 0:00:02]} 3. Bg2 {[%emt 0:00:01]} d5 {[%emt 0:00:01]} 4. Nf3 {[%emt 0:00:01]} Be7 {[%emt 0:00:01]} 5. O-O {[%emt 0:00:03]} O-O {[%emt 0:00:01]} 6. d4 {[%emt 0:00:08]} Ne4 {[%emt 0:00:05]} 7. Nbd2 {[%emt 0:00:27]} f5 {[%emt 0:00:01]} 8. Qc2 {[%emt 0:00:07]} c6 {[%emt 0:00:01]} 9. a3 {[%emt 0:00:02]} Nd7 {[%emt 0:00:01]} 10. b3 {[%emt 0:00:02]} Ndf6 {[%emt 0:00:02]} 11. Bb2 {[%emt 0:00:02]} Bd7 {[%emt 0:00:02]} 12. Rac1 {[%emt 0:00:05]} Bd6 {[%emt 0:00:09]} 13. c5 {[%emt 0:00:13]} Bc7 {[%emt 0:00:02]} 14. Ne5 {[%emt 0:00:28]} Be8 {[%emt 0:00:02]} 15. Ndf3 {[%emt 0:00:09]} Qe7 {[%emt 0:00:03]} 16. b4 {[%emt 0:00:14]} g5 {[%emt 0:00:17]} 17. h3 {[%emt 0:00:12]} Nd7 {[%emt 0:00:23]} *

[Event "3rd FIDE WCCC Blitz G12 2019"]
[Site "Minsk"]
[Date "2019.08.18"]
[Round "3.4"]
[White "Zhapova, Yana"]
[Black "Nguyen, Le Cam Hien"]
[Result "*"]
[ECO "B00"]
[WhiteElo "1809"]
[BlackElo "1579"]
[Annotator "NA"]
[PlyCount "27"]
[EventDate "2019.08.18"]
[EventType "swiss"]
[EventCountry "BLR"]
[SourceTitle "playchess.com"]
[Source "ChessBase"]
[SourceQuality "1"]
[TimeControl "300+2"]

1. e4 {[%emt 0:00:00]} d6 {[%emt 0:00:00]} 2. d4 {[%emt 0:00:02]} g6 {[%emt 0:00:00]} 3. f4 {[%emt 0:00:04]} Bg7 {[%emt 0:00:02]} 4. Nf3 {[%emt 0:00:01]} e6 {[%emt 0:00:01]} 5. Be2 {[%emt 0:00:03]} Ne7 {[%emt 0:00:02]} 6. O-O {[%emt 0:00:04]} O-O {[%emt 0:00:03]} 7. Nc3 {[%emt 0:00:05]} f5 {[%emt 0:00:07]} 8. Be3 {[%emt 0:00:36]} h6 {[%emt 0:00:26]} 9. Qd2 {[%emt 0:00:07]} Nd7 {[%emt 0:00:14]} 10. h3 {[%emt 0:00:25]} Nf6 {[%emt 0:00:10]} 11. Bd3 {[%emt 0:00:01]} d5 {[%emt 0:00:20]} 12. exf5 {[%emt 0:00:09]} exf5 {[%emt 0:00:05]} 13. Ne5 {[%emt 0:00:08]} Ne4 {[%emt 0:00:02]} 14. Nxe4 *

[Event "3rd FIDE WCCC Blitz G12 2019"]
[Site "Minsk"]
[Date "2019.08.18"]
[Round "3.5"]
[White "Yakymakha, Mariia"]
[Black "Vu, My Linh"]
[Result "*"]
[ECO "B08"]
[WhiteElo "1342"]
[BlackElo "1467"]
[Annotator "NA"]
[PlyCount "24"]
[EventDate "2019.08.18"]
[EventType "swiss"]
[EventCountry "BLR"]
[SourceTitle "playchess.com"]
[Source "ChessBase"]
[SourceQuality "1"]
[TimeControl "300+2"]

1. e4 {[%emt 0:00:00]} g6 {[%emt 0:00:00]} 2. Nf3 {[%emt 0:00:03]} Bg7 {[%emt 0:00:00]} 3. d4 {[%emt 0:00:01]} d6 {[%emt 0:00:00]} 4. Nc3 {[%emt 0:00:03]} Nf6 {[%emt 0:00:01]} 5. Be2 {[%emt 0:00:02]} O-O {[%emt 0:00:03]} 6. O-O {[%emt 0:00:03]} e5 {[%emt 0:00:01]} 7. dxe5 {[%emt 0:00:10]} dxe5 {[%emt 0:00:02]} 8. h3 {[%emt 0:00:02]} Nc6 {[%emt 0:00:03]} 9. Be3 {[%emt 0:00:03]} b6 {[%emt 0:00:13]} 10. Qxd8 {[%emt 0:00:07]} Rxd8 {[%emt 0:00:01]} 11. Rad1 {[%emt 0:00:02]} Bb7 {[%emt 0:00:02]} 12. Bg5 {[%emt 0:01:09]} Nd4 {[%emt 0:01:21]} *